fUSD/lending_fUSD_20260107
["ID","MTS","AMOUNT","RATE_DAILY","PERIOD"]
[400737055,1767804646969,-1109.26559335,0.00017999,5]
[400737057,1767804646979,-300.0,0.00017999,2]
[400737059,1767804646988,-666.0,0.00017999,2]
[400737061,1767804647001,-357.10757348,0.00017999,2]
[400737063,1767804647010,-300.0,0.00017999,2]
[400737065,1767804647019,-500.0,0.00017999,2]
[400737067,1767804647027,-500.0,0.00017999,2]
[400737069,1767804647036,-389.79829828,0.00017999,2]
[400737071,1767804647045,-395.10952792,0.00017999,2]
[400737073,1767804647054,-300.0,0.00017999,2]
[400737075,1767804647064,-666.0,0.00017999,2]
[400737077,1767804647073,-300.0,0.00017999,2]
[400737079,1767804647081,-666.0,0.00017999,2]
[400737081,1767804647091,-5826.21400436,0.00017999,2]
[400737083,1767804647100,-612695.13120693,0.00018,2]
[400737140,1767804647648,-5910198.95127435,0.00018,2]
[400737142,1767804647660,-437.70943335,0.00018,2]
[400737144,1767804647671,-39715.89921707,0.00018,2]
[400737280,1767804649106,-685.80626663,0.00018,2]
[400737299,1767804649288,-3010.12872649,0.00018,2]
[400737301,1767804649300,-3389.19645253,0.00018,2]
[400737487,1767804651061,-1.7e-07,0.00018,2]
[400737496,1767804651125,-4569.13905693,0.00018,2]
[400737498,1767804651140,-9155.84279121,0.00018,2]
[400737719,1767804653706,-381.10635154,0.00015172,2]
[400737763,1767804654579,-118.89364846,0.00015172,2]
[400737765,1767804654589,-597.23624248,0.00015172,2]
[400737767,1767804654599,-546.69556347,0.00016388,2]
[400737769,1767804654608,-308633.30701031,0.00018,2]
[400737771,1767804654619,-4000.0,0.00018,2]
[400737932,1767804656374,-462.84989598,0.00018,2]
[400737934,1767804656385,-327.410967,0.00018,2]
[400737939,1767804656420,-811.8872998,0.00018,2]
[400737941,1767804656432,-379.12940536,0.00018,2]
[400737943,1767804656443,-657.92929977,0.00018,2]
[400737945,1767804656455,-2612.77264086,0.00018,2]
[400737948,1767804656466,-826.98901178,0.00018,2]
[400737967,1767804656646,-191306.34975072,0.00018,2]
[400738912,1767804700981,-905.98478263,0.00014687,2]
[400738913,1767804703202,-412.78421619,0.00014687,2]
[400738915,1767804706549,-273.46753075,0.00014687,2]
[400738916,1767804708195,-500.0,0.00014687,2]
[400738917,1767804710424,-202.8,0.00014687,2]
[400738918,1767804712421,-191.1955794,0.00014687,2]
[400738919,1767804714342,-276.03699554,0.00014687,2]
[400738920,1767804717090,-186.69489549,0.00014687,2]
[400738921,1767804717112,-56.44875872,0.00014687,2]
[400738923,1767804728316,1000.0,0.0002,30]
[400738924,1767804762752,1109.26559334,0.00014986,5]
[400738925,1767804770354,-160.62624128,0.00014687,2]
[400738926,1767804770377,-10893.88463328,0.00014887,2]
[400738927,1767804770402,-15041.48912544,0.00014987,2]
[400738932,1767804817499,1027.19495209,0.00032876,120]
[400738934,1767804842755,1000.0,0.00032876,120]
[400738938,1767804885020,-390.73143501,0.00014832,2]
[400738939,1767804887747,-297.2,0.00014832,2]
[400738940,1767804890039,-302.97877102,0.00014832,2]
[400738941,1767804894374,-303.44604446,0.00014832,2]
[400738942,1767804896376,-5134.47893939,0.00014832,2]
[400738943,1767804896409,-10000.01,0.00014832,2]
[400738944,1767804896423,-10000.01,0.00014832,2]
[400738946,1767804901534,-10000.01,0.00014832,2]
[400738947,1767804901687,-300.0,0.00014831,2]
[400738948,1767804901697,-300.0,0.00014831,2]
[400738949,1767804901706,-9400.01,0.00014832,2]
[400738952,1767804927292,-500.0,0.00014471,2]
[400738953,1767804930066,-351.54260527,0.00014471,2]
[400738954,1767804932488,-243.14365421,0.00014471,2]
[400738955,1767804935140,-223.96300446,0.00014471,2]
[400738956,1767804937830,-197.02122898,0.00014471,2]
[400738957,1767804940179,-308.8044206,0.00014471,2]
[400738958,1767804941348,-185.30556053,0.00014471,2]
[400738959,1767804943262,-350.0,0.00014471,2]
[400738960,1767804944340,-378.51205855,0.00014364,2]
[400738961,1767804946764,-200.0,0.00014364,2]
[400738962,1767804949897,-400.0,0.00014364,2]
[400738964,1767804951729,-203.478566,0.00014364,2]
[400738965,1767804953939,-256.68249628,0.00014364,2]
[400738966,1767804957629,-61.32687917,0.00014364,2]
[400738967,1767804957650,-140.75301085,0.00014471,2]
[400738968,1767804960434,-442.88016213,0.00014471,2]
[400738972,1767804985109,-2562.64945122,0.00014355,2]
[400738976,1767804987068,-230.05299903,0.00014355,2]
[400738977,1767804988788,-270.0,0.00014355,2]
[400738978,1767804989507,3211.88144979,0.00014244,2]
[400738979,1767804989529,3211.88144979,0.00014244,2]
[400738980,1767804989551,3211.88144979,0.00014244,2]
[400738981,1767804989575,756.53565063,0.00014244,2]
[400738982,1767804990854,-276.3216811,0.00014355,2]
[400738983,1767804992427,-181.83775549,0.00014355,2]
[400738984,1767804994157,-245.75464601,0.00014355,2]
[400738985,1767804997490,-367.0420815,0.00014355,2]
[400738986,1767804999235,-500.0,0.00014355,2]
[400738987,1767805002432,-210.22252446,0.00014355,2]
[400738988,1767805004326,-161.41992823,0.00014355,2]
[400738989,1767805006058,-250.0,0.00014355,2]
[400738990,1767805008355,-252.70396908,0.00014355,2]
[400738991,1767805013679,-500.0,0.00014355,2]
[400738992,1767805015635,-500.0,0.00014355,2]
[400738993,1767805017135,-202.6548135,0.00014355,2]
[400738994,1767805020352,-132.45015038,0.00014355,2]
[400738995,1767805020375,-89.83336874,0.00014398,2]
[400738996,1767805075130,-185.13635297,0.00014471,2]
[400738997,1767805075155,-314.9636816,0.00014831,2]
[400738998,1767805102210,-885.0363184,0.00014831,2]
[400738999,1767805102240,-195.0,0.00014832,2]
[400739000,1767805102299,-7839.9373632,0.00014832,2]
[400739001,1767805102450,-390.35744692,0.00014832,2]
[400739002,1767805102478,-848.85935947,0.00014886,2]
[400739003,1767805102532,-7521.57638722,0.00014887,2]
[400739004,1767805102597,-10000.01,0.00014887,2]
[400739005,1767805102681,-1077.65705968,0.00014787,2]
[400739006,1767805102710,-611.73492346,0.00014887,2]
[400739007,1767805102769,-6621.22603372,0.00014887,2]
[400739008,1767805102884,-10000.01,0.00014887,2]
[400739009,1767805103105,-10000.01,0.00014887,2]
[400739010,1767805103221,-10000.01,0.00014887,2]
[400739011,1767805126401,-758.81575777,0.00014887,2]
[400739012,1767805126431,-256.68249628,0.00014887,2]
[400739013,1767805126460,-2500.0,0.00014887,2]
[400739014,1767805126491,-500.0,0.00014978,2]
[400739015,1767805126520,-500.0,0.00014978,2]
[400739016,1767805126548,-469.0134919,0.00014978,2]
[400739017,1767805126744,-30.9865081,0.00014978,2]
[400739018,1767805126772,-477.75390719,0.00014978,2]
[400739019,1767805126799,-327.25369848,0.00014978,2]
[400739020,1767805126827,-500.0,0.00014978,2]
[400739021,1767805126856,-151.0,0.00014978,2]
[400739022,1767805126885,-151.0,0.00014978,2]
[400739023,1767805126914,-151.0,0.00014978,2]
[400739024,1767805126943,-151.0,0.00014978,2]
[400739025,1767805126972,-151.0,0.00014978,2]
[400739026,1767805127001,-151.0,0.00014978,2]
[400739027,1767805127029,-151.0,0.00014978,2]
[400739028,1767805127057,-151.0,0.00014978,2]
[400739029,1767805127086,-151.0,0.00014978,2]
[400739030,1767805127114,-151.0,0.00014978,2]
[400739031,1767805127142,-151.0,0.00014978,2]
[400739032,1767805127169,-150.0,0.00014985,2]
[400739033,1767805127198,-250.0,0.00014986,2]
[400739034,1767805127226,-706.02177246,0.00014986,2]
[400739035,1767805127366,-1793.97822754,0.00014986,2]
[400739036,1767805127395,-275.6527,0.00014986,2]
[400739037,1767805127424,-500.0,0.00014986,2]
[400739038,1767805127453,-324.4195985,0.00014986,2]
[400739039,1767805127483,-500.0,0.00014986,2]
[400739040,1767805127512,-500.0,0.00014986,2]
[400739041,1767805127853,-500.0,0.00014986,2]
[400739042,1767805127887,-500.0,0.00014986,2]
[400739043,1767805128054,-500.0,0.00014986,2]
[400739044,1767805128089,-500.0,0.00014986,2]
[400739045,1767805128121,-500.0,0.00014986,2]
[400739046,1767805128151,-500.0,0.00014986,2]
[400739047,1767805128181,-500.0,0.00014986,2]
[400739048,1767805128215,-500.0,0.00014986,2]
[400739049,1767805128244,-217.91353754,0.00014986,2]
[400739050,1767805128276,-500.0,0.00014986,2]
[400739051,1767805128307,-500.0,0.00014986,2]
[400739052,1767805128338,-500.0,0.00014986,2]
[400739053,1767805128368,-64.18292492,0.00014986,2]
[400739054,1767805129613,-435.81707508,0.00014986,2]
[400739055,1767805129640,-64.18292492,0.00014986,2]
[400739056,1767805131146,-318.41500888,0.00014986,2]
[400739057,1767805131259,-117.4020662,0.00014986,2]
[400739058,1767805131269,-100.51147134,0.00014986,2]
[400739059,1767805131305,-145.91081309,0.00014986,2]
[400739060,1767805131315,-250.0,0.00014986,2]
[400739061,1767805131325,-104.08918691,0.00014987,2]
[400739062,1767805131341,-90.91081309,0.00014987,2]
[400739063,1767805131352,-300.0,0.00014987,2]
[400739064,1767805131362,-109.08918691,0.00014987,2]
[400739065,1767805131395,-390.91081309,0.00014987,2]
[400739067,1767805145358,-300.0,0.00014986,2]
[400739072,1767805148676,2500.0,0.00014887,2]
[400739076,1767805151293,-403.8,0.00014987,2]
[400739080,1767805172084,153.87218138,0.00014986,2]
[400739081,1767805172168,596.69006789,0.00014986,2]
[400739082,1767805172205,163.49161603,0.00014986,2]
[400739083,1767805172243,500.0,0.00014986,2]
[400739084,1767805172285,197.52972618,0.00014986,2]
[400739085,1767805172364,500.0,0.00014986,2]
[400739087,1767805172459,187.44697681,0.00014986,2]
[400739088,1767805178083,1038.49,0.0001472,2]
[400739089,1767805192398,1735.96841665,0.00014953,2]
[400739090,1767805195400,500.0,0.00014741,2]
[400739091,1767805201508,1200.0,0.00014986,2]
[400739092,1767805201548,126.52101506,0.00014986,2]
[400739093,1767805201572,173.47898494,0.00014986,2]
[400739094,1767805201933,300.0,0.00014986,2]
[400739095,1767805202460,150.0,0.00014986,2]
[400739096,1767805205058,274.0,0.00014987,2]
[400739097,1767805209012,200.0,0.00014987,2]
[400739098,1767805212016,500.0,0.00014986,2]
[400739099,1767805212277,500.0,0.00014986,2]
[400739100,1767805212503,500.0,0.00014986,2]
[400739101,1767805235672,7402.53101506,0.00014977,2]
[400739102,1767805235696,151.0,0.00014977,2]
[400739103,1767805245649,-21764.37431635,0.00014977,2]
[400739104,1767805245676,-500.0,0.00014986,2]
[400739105,1767805245700,-210.93968051,0.00014986,2]
[400739106,1767805245726,-500.0,0.00014986,2]
[400739107,1767805245752,-500.0,0.00014986,2]
[400739108,1767805245780,-500.0,0.00014986,2]
[400739110,1767805245806,-500.0,0.00014986,2]
[400739111,1767805245832,-500.0,0.00014986,2]
[400739112,1767805245858,-500.0,0.00014986,2]
[400739113,1767805245884,-500.0,0.00014986,2]
[400739114,1767805245909,-969135.4751777,0.00014987,2]
[400739117,1767805262239,500.0,0.00014986,2]
[400739118,1767805264538,4587.12,0.00014641,2]
[400739121,1767805265852,636.64,0.00014525,2]
[400739122,1767805275686,-500.0,0.00014986,2]
[400739123,1767805275710,-500.0,0.00014986,2]
[400739124,1767805275739,-500.0,0.00014986,2]
[400739125,1767805275765,-309.9446595,0.00014986,2]
[400739126,1767805275789,-500.0,0.00014986,2]
[400739127,1767805275812,-500.0,0.00014986,2]
[400739128,1767805275834,-500.0,0.00014986,2]
[400739129,1767805275859,-500.0,0.00014986,2]
[400739130,1767805275887,-500.0,0.00014986,2]
[400739131,1767805275915,-500.0,0.00014986,2]
[400739132,1767805275943,-500.0,0.00014986,2]
[400739133,1767805275973,-500.0,0.00014986,2]
[400739134,1767805276005,-500.0,0.00014986,2]
[400739135,1767805276033,-500.0,0.00014986,2]
[400739136,1767805276060,-500.0,0.00014986,2]
[400739137,1767805276088,-500.0,0.00014986,2]
[400739138,1767805276115,-500.0,0.00014986,2]
[400739139,1767805276144,-500.0,0.00014986,2]
[400739140,1767805276171,-500.0,0.00014986,2]
[400739141,1767805276199,-500.0,0.00014986,2]
[400739142,1767805276226,-500.0,0.00014986,2]
[400739143,1767805276252,-500.0,0.00014986,2]
[400739144,1767805276278,-500.0,0.00014986,2]
[400739145,1767805276307,-500.0,0.00014986,2]
[400739146,1767805276332,-500.0,0.00014986,2]
[400739147,1767805276359,-500.0,0.00014986,2]
[400739148,1767805276388,-500.0,0.00014986,2]
[400739149,1767805276416,-551.82093032,0.00014986,2]
[400739150,1767805276445,-500.0,0.00014986,2]
[400739151,1767805276473,-500.0,0.00014986,2]
[400739152,1767805276501,-500.0,0.00014986,2]
[400739153,1767805276529,-500.0,0.00014986,2]
[400739154,1767805276558,-500.0,0.00014986,2]
[400739155,1767805276586,-500.0,0.00014986,2]
[400739156,1767805276614,-500.0,0.00014986,2]
[400739157,1767805276643,-500.0,0.00014986,2]
[400739158,1767805276670,-500.0,0.00014986,2]
[400739159,1767805276697,-500.0,0.00014986,2]
[400739160,1767805276725,-500.0,0.00014986,2]
[400739161,1767805276752,-500.0,0.00014986,2]
[400739162,1767805276778,-500.0,0.00014986,2]
[400739163,1767805276803,-500.0,0.00014986,2]
[400739164,1767805276828,-500.0,0.00014986,2]
[400739165,1767805276854,-500.0,0.00014986,2]
[400739166,1767805276879,-500.0,0.00014986,2]
[400739167,1767805276905,-500.0,0.00014986,2]
[400739168,1767805276931,-500.0,0.00014986,2]
[400739169,1767805276958,-500.0,0.00014986,2]
[400739170,1767805276984,-500.0,0.00014986,2]
[400739171,1767805277008,-500.0,0.00014986,2]
[400739172,1767805277035,-500.0,0.00014986,2]
[400739173,1767805277061,-500.0,0.00014986,2]
[400739174,1767805277087,-500.0,0.00014986,2]
[400739175,1767805277115,-500.0,0.00014986,2]
[400739176,1767805277141,-500.0,0.00014986,2]
[400739177,1767805277166,-500.0,0.00014986,2]
[400739178,1767805277194,-1194.33031982,0.00014986,2]
[400739179,1767805277220,-1194.33031982,0.00014986,2]
[400739180,1767805277242,-501.95388957,0.00014986,2]
[400739181,1767805277271,-1194.33031982,0.00014986,2]
[400739182,1767805277299,-1194.33031982,0.00014986,2]
[400739183,1767805277325,-1194.33031982,0.00014986,2]
[400739184,1767805277354,-1194.33031982,0.00014986,2]
[400739185,1767805277385,-1194.33031982,0.00014986,2]
[400739186,1767805277417,-1194.33031982,0.00014986,2]
[400739187,1767805277445,-1194.33031982,0.00014986,2]
[400739188,1767805277472,-1194.33031982,0.00014986,2]
[400739189,1767805277499,-1194.33031982,0.00014986,2]
[400739190,1767805277528,-1194.33031982,0.00014986,2]
[400739191,1767805277557,-1194.33031982,0.00014986,2]
[400739192,1767805277584,-1194.33031982,0.00014986,2]
[400739193,1767805277612,-1194.33031982,0.00014986,2]
[400739194,1767805277639,-1194.33031982,0.00014986,2]
[400739195,1767805277666,-1194.33031982,0.00014986,2]
[400739196,1767805277694,-1194.33031982,0.00014986,2]
[400739197,1767805277722,-1194.33031982,0.00014986,2]
[400739198,1767805277749,-1194.33031982,0.00014986,2]
[400739199,1767805277774,-1194.33031982,0.00014986,2]
[400739200,1767805277801,-1194.33031982,0.00014986,2]
[400739201,1767805277828,-1194.33031982,0.00014986,2]
[400739202,1767805277853,-1194.33031982,0.00014986,2]
[400739203,1767805277881,-1194.33031982,0.00014986,2]
[400739204,1767805277907,-1194.33031982,0.00014986,2]
[400739205,1767805277933,-1194.33031982,0.00014986,2]
[400739206,1767805277962,-1194.33031982,0.00014986,2]
[400739207,1767805277989,-1194.33031982,0.00014986,2]
[400739208,1767805278015,-1194.33031982,0.00014986,2]
[400739209,1767805278037,-261.43507216,0.00014987,2]
[400739210,1767805278063,-15419.23569686,0.00014987,2]
[400739211,1767805278087,-1000.0,0.00014987,2]
[400739212,1767805278111,-9556.0783,0.00014987,2]
[400739213,1767805278399,-879.04734679,0.00014993,2]
[400739214,1767805278428,-195.0,0.00014998,2]
[400739215,1767805283886,305.00758419,0.00014998,2]
[400739216,1767805284335,1000.0,0.00014887,2]
[400739217,1767805288794,203.33838946,0.00014998,2]
[400739218,1767805293562,151.0,0.00014998,2]
[400739219,1767805296950,255.67677892,0.00014998,2]
[400739220,1767805300900,1463.5696,0.00014887,2]
[400739221,1767805306528,500.0,0.00014986,2]
[400739222,1767805309227,500.0,0.00014986,2]
[400739223,1767805309365,500.0,0.00014986,2]
[400739224,1767805309453,192.27404392,0.00014986,2]
[400739225,1767805309487,818.76,0.00015076,3]
[400739226,1767805310216,151.0,0.00014998,2]
[400739231,1767805319880,500.0,0.00014986,2]
[400739232,1767805319914,190.2794334,0.00014986,2]
[400739234,1767805321966,300.0,0.00015009,2]
[400739235,1767805331029,151.0,0.00014987,2]
[400739236,1767805331936,151.0,0.00014987,2]
[400739237,1767805332731,151.0,0.00014987,2]
[400739238,1767805333423,151.0,0.00014987,2]
[400739239,1767805334024,151.0,0.00014987,2]
[400739240,1767805334970,151.0,0.00014987,2]
[400739241,1767805336065,151.0,0.00014987,2]
[400739242,1767805336338,500.0,0.00014986,2]
[400739243,1767805336526,500.0,0.00014986,2]
[400739244,1767805336605,151.0,0.00014987,2]
[400739245,1767805337063,500.0,0.00014986,2]
[400739246,1767805337236,500.0,0.00014986,2]
[400739247,1767805337406,151.0,0.00014987,2]
[400739248,1767805337784,151.0,0.00014987,2]
[400739249,1767805338273,151.0,0.00014987,2]
[400739250,1767805346352,500.0,0.00014987,2]
[400739251,1767805347216,157.33008585,0.00014987,2]
[400739252,1767805347564,4213.19,0.00014657,2]
[400739253,1767805392777,1168.48991415,0.00014887,2]
[400739254,1767805392801,10000.01,0.00014887,2]
[400739255,1767805392824,10000.01,0.00014887,2]
[400739256,1767805392847,10000.01,0.00014887,2]
[400739257,1767805392869,10000.01,0.00014887,2]
[400739258,1767805392891,10000.01,0.00014887,2]
[400739259,1767805392914,10000.01,0.00014887,2]
[400739260,1767805392936,10000.01,0.00014887,2]
[400739266,1767805441628,300.0,0.00014886,2]
[400739267,1767805469052,9700.01,0.00014848,2]
[400739268,1767805469074,10000.01,0.00014848,2]
[400739269,1767805469097,7982.94118193,0.00014848,2]
[400739277,1767805472107,202.53434084,0.00014886,2]
[400739278,1767805472165,393.96469128,0.00014886,2]
[400739279,1767805472208,333.19822491,0.00014886,2]
[400739280,1767805472248,500.0,0.00014886,2]
[400739281,1767805472308,500.0,0.00014886,2]
[400739282,1767805472463,179.52677133,0.00014886,2]
[400739284,1767805474079,500.0,0.00014886,2]
[400739285,1767805474157,500.0,0.00014886,2]
[400739286,1767805474249,245.74447494,0.00014886,2]
[400739288,1767805477065,312.21607328,0.00014886,2]
[400739289,1767805477102,500.0,0.00014886,2]
[400739290,1767805477175,500.0,0.00014886,2]
[400739291,1767805477273,500.0,0.00014886,2]
[400739292,1767805477325,500.0,0.00014886,2]
[400739293,1767805477450,500.0,0.00014886,2]
[400739294,1767805477522,500.0,0.00014886,2]
[400739295,1767805477619,500.0,0.00014886,2]
[400739296,1767805477697,500.0,0.00014886,2]
[400739297,1767805477800,500.0,0.00014886,2]
[400739298,1767805477847,500.0,0.00014886,2]
[400739299,1767805477905,500.0,0.00014886,2]
[400739300,1767805477987,500.0,0.00014886,2]
[400739301,1767805478074,332.82542342,0.00014886,2]
[400739302,1767805478425,167.17457658,0.00014886,2]
[400739303,1767805478575,500.0,0.00014886,2]
[400739304,1767805478633,500.0,0.00014886,2]
[400739305,1767805478729,281.4709668,0.00014886,2]
[400739306,1767805501835,300.0,0.00014886,2]
[400739307,1767805501871,1200.0,0.00014886,2]
[400739308,1767805502092,254.0,0.00014886,2]
[400739309,1767805514978,999.0,0.00014605,3]
[400739310,1767805518112,6797.36445662,0.00014848,2]
[400739311,1767805518133,10000.01,0.00014848,2]
[400739312,1767805518155,5481.71815334,0.00014848,2]
[400739325,1767805563430,150.0,0.00014886,2]
[400739326,1767805564772,230.0,0.00014886,2]
[400739345,1767805689824,1100.0,0.0001468,2]
[400739346,1767805694602,1100.0,0.00014355,2]
[400739347,1767805699775,1100.0,0.00014355,2]
[400739357,1767805742317,300.0,0.00014886,2]
[400739358,1767805742641,150.0,0.00014886,2]
[400739359,1767805743859,154.0,0.00014886,2]
[400739374,1767805801222,234.29184666,0.00014886,2]
[400739375,1767805801245,965.70815334,0.00014886,2]
[400739376,1767805801300,300.0,0.00014886,2]
[400739377,1767805806032,273.0,0.00014887,2]
[400739378,1767805806150,413.24859756,4.9e-05,2]
[400739381,1767805831999,-4206.93107681,0.00014887,2]
[400739382,1767805832011,-1157.04799734,0.00014887,2]
[400739383,1767805832062,-2062.16196597,0.00014887,2]
[400739384,1767805832073,-2735.64,0.00014887,2]
[400739385,1767805832085,-257.8752,0.00014887,2]
[400739386,1767805832145,-1037.1543125,0.00014887,2]
[400739387,1767805832195,-4233.75066493,0.00014887,2]
[400739388,1767805835067,188.34956482,0.00014886,2]
[400739389,1767805835121,417.98263923,0.00014886,2]
[400739435,1767805838622,-833.18545814,0.00014887,2]
[400739439,1767805838655,-11057.69274996,0.00014887,2]
[400739448,1767805838730,-2578.60560507,0.00014887,2]
[400739451,1767805838743,-35973.60000001,0.00014887,2]
[400739453,1767805838755,-500.0,0.00014887,2]
[400739455,1767805838767,-12987.04402191,0.00014887,2]
[400739457,1767805838778,-16798.28452891,0.00014887,2]
[400739459,1767805838790,-7967.72470494,0.00014887,2]
[400739462,1767805838802,-15120.03553679,0.00014887,2]
[400739464,1767805838813,-16785.15192604,0.00014887,2]
[400739466,1767805838825,-6003.3091171,0.00014887,2]
[400739479,1767805838936,-2802.14483546,0.00014887,2]
[400739481,1767805838947,-5166.6679344,0.00014887,2]
[400739483,1767805838959,-14053.70631491,0.00014887,2]
[400739485,1767805838970,-4176.20288896,0.00014887,2]
[400739487,1767805838981,-760337.5232457,0.00014887,2]
[400739489,1767805838991,-5000.0,0.00014902,2]
[400739529,1767805839292,-250.0,0.00014918,2]
[400739534,1767805839396,-4685.70338709,0.00014967,2]
[400739536,1767805839406,-500.06843701,0.00014986,2]
[400739538,1767805839415,-500.0,0.0001501,2]
[400739540,1767805839425,-151.0,0.0001501,2]
[400739542,1767805839435,-151.0,0.0001501,2]
[400739544,1767805839444,-151.0,0.0001501,2]
[400739546,1767805839456,-151.0,0.0001501,2]
[400739548,1767805839465,-151.0,0.0001501,2]
[400739550,1767805839477,-151.0,0.0001501,2]
[400739552,1767805839486,-151.0,0.0001501,2]
[400739554,1767805839495,-151.0,0.0001501,2]
[400739556,1767805839505,-151.0,0.0001501,2]
[400739558,1767805839515,-151.0,0.0001501,2]
[400739560,1767805839523,-151.0,0.0001501,2]
[400739562,1767805839535,-250.0,0.00015011,2]
[400739565,1767805839545,-161.8794398,0.00015073,2]
[400739566,1767805839554,-500.0,0.00015073,2]
[400739569,1767805839564,-500.0,0.00015073,2]
[400739571,1767805839574,-535.8717523,0.00015073,2]
[400739572,1767805839583,-500.0,0.00015073,2]
[400739574,1767805839591,-442.83023798,0.00015073,2]
[400739576,1767805839601,-166.49390426,0.00015073,2]
[400739578,1767805839610,-536.66734105,0.00015073,2]
[400739580,1767805839619,-500.0,0.00015073,2]
[400739582,1767805839629,-538.59757642,0.00015073,2]
[400739584,1767805839638,-500.0,0.00015073,2]
[400739586,1767805839647,-500.0,0.00015073,2]
[400739588,1767805839656,-500.0,0.00015073,2]
[400739590,1767805839666,-500.0,0.00015073,2]
[400739593,1767805839675,-164.10183588,0.00015073,2]
[400739595,1767805839684,-224.66209336,0.00015073,2]
[400739597,1767805839694,-500.0,0.00015073,2]
[400739599,1767805839703,-500.0,0.00015073,2]
[400739601,1767805839712,-500.0,0.00015073,2]
[400739603,1767805839721,-500.0,0.00015073,2]
[400739605,1767805839731,-500.0,0.00015073,2]
[400739607,1767805839739,-500.0,0.00015073,2]
[400739609,1767805839748,-500.0,0.00015073,2]
[400739611,1767805839758,-1767.44,0.00015073,2]
[400739614,1767805839767,-1268.16296255,0.00015076,2]
[400739616,1767805839777,-200.0,0.00015076,2]
[400739618,1767805839786,-200.0,0.00015076,2]
[400739621,1767805839795,-240.62620329,0.00015085,2]
[400739623,1767805839804,-2112.75061344,0.00015085,2]
[400739626,1767805839815,-500.0,0.00015085,2]
[400739628,1767805839825,-500.0,0.00015086,2]
[400739631,1767805839835,-500.0,0.00015086,2]
[400739633,1767805839844,-500.0,0.00015086,2]
[400739635,1767805839853,-511.89277524,0.00015086,2]
[400739638,1767805839862,-500.0,0.00015086,2]
[400739639,1767805839871,-500.0,0.00015086,2]
[400739641,1767805839880,-500.0,0.00015086,2]
[400739643,1767805839889,-500.0,0.00015086,2]
[400739645,1767805839898,-474.29981828,0.00015086,2]
[400739648,1767805839907,-500.0,0.00015086,2]
[400739650,1767805839916,-508.99338834,0.00015086,2]
[400739652,1767805839926,-419.33594592,0.00015086,2]
[400739653,1767805839935,-500.0,0.00015086,2]
[400739655,1767805839945,-299.99,0.00015086,2]
[400739657,1767805839954,-9999.99,0.00015086,2]
[400739659,1767805839963,-19999.99,0.00015086,2]
[400739661,1767805839972,-999.99,0.00015086,2]
[400739663,1767805839982,-150.99,0.00015086,2]
[400739665,1767805839991,-150.99,0.00015086,2]
[400739667,1767805840000,-9999.99,0.00015086,2]
[400739669,1767805840009,-200.0,0.00015137,2]
[400739671,1767805840018,-22279.09260992,0.00015187,2]
[400739673,1767805840027,-200.0,0.00015227,2]
[400739676,1767805840036,-200.0,0.00015227,2]
[400739678,1767805840046,-500.0,0.00015233,2]
[400739680,1767805840055,-461.49248906,0.00015233,2]
[400739681,1767805840064,-200.0,0.00015288,2]
[400739683,1767805840073,-1767.44,0.00015347,2]
[400739685,1767805840082,-516.35240898,0.0001536,2]
[400739687,1767805840091,-200.0,0.00015379,2]
[400739689,1767805840100,-200.0,0.00015379,2]
[400739691,1767805840109,-200.0,0.00015441,2]